{"text_format":"3","workbook":"xlsx","n_sheets":8,"sheets":["Pokyny","Pravidelná komunikácia","Príležitostní známi","Potenciálny záujem","Networking – Plán na Q1","Networking – Plán na Q2","Networking – Plán na Q3","Networking – Plán na Q4"],"not_rendered":{"defined_names":7},"read":"whole","date_system":"1900"}

{"sheet":"Pokyny","index":0,"n_rows":17,"n_cols":5,"rows_kept":17,"merged":[[0,0,0,2],[1,1,1,6],[2,1,2,6],[3,1,3,6],[4,1,4,6],[5,1,5,6],[6,1,6,6],[7,1,7,6],[8,1,8,6],[9,1,9,6],[10,1,10,6],[11,1,11,6]]}
["Sledovanie komunikácie s kontaktmi",null,null,"Pokyny"]
[null,"1. Rozhodnite, do ktorej kategórie patrí váš kontakt:"]
[null,"• Pravidelná komunikácia – ľudia, s ktorými by ste chceli pravidelne komunikovať"]
[null,"• Príležitostní známi – ľudia, s ktorými by ste chceli komunikovať niekoľkokrát za rok"]
[null,"• Potenciálny záujem – ľudia alebo spoločnosti, na ktoré chcete mať kontakt, aby ste ich mohli kontaktovať, keď príde vhodný čas"]
[null,"2. Otvorte príslušnú kartu hárka."]
[null,"3. Zadajte informácie kontaktov (ak chcete vytvoriť nový riadok v bunke, stlačte kombináciu klávesov Alt + Enter vo Windowse alebo Option + Return v Macu)."]
[null,"Tu nájdete pokyny na vytvorenie nového riadku v mobilných aplikáciách Excelu."]
[null,"4. V stĺpci Dátum komunikácie odstráňte vzorový dátum alebo vzorec, zadajte, kedy by ste sa im chceli ozvať, \na stlačte kláves Enter."]
[null,"5. Stĺpec Dátum komunikácie sa zobrazí načerveno, keď bude uvedený dátum v blízkej budúcnosti, nažlto, keď sa bude blížiť, a \nnazeleno, ak máte dostatok času."]
[null,"6. Farba sa bude meniť podľa toho, ako sa bude blížiť dátum komunikácie."]
[null,"7. Po komunikácii so svojím kontaktom, zadajte ÁNO do stĺpcaHotovo? Dátum sa zobrazí v sivej farbe. "]
[null,"8. Ak budete chcieť s kontaktom znovu komunikovať, nahraďte ÁNO textom NIE a zadajte nový Dátum komunikácie."]
[null,null,"Červená","Žltá","Zelená"]
[null,"Pravidelná komunikácia","O 1 – 3 dni","O 4 – 7 dní","O 8 – 14 dní"]
[null,"Príležitostní známi","O 1 až 7 dní","O 8 až 45 dní","O 46 až 90 dní"]
[null,"Potenciálny záujem","O 1 – 14 dní","O 15 – 60 dní","O 60 – 120 dní"]

{"sheet":"Pravidelná komunikácia","index":1,"n_rows":7,"n_cols":8,"rows_kept":7,"merged":[[0,0,0,2]]}
["Sledovanie komunikácie s kontaktmi",null,null,"Pravidelná komunikácia"]
[]
["Meno","Spoločnosť","Kontaktné informácie","Kde sme sa stretli","Poznámky","Dátum komunikácie","Hotovo","Poznámky z konverzácie"]
["Filip Kapusta","Adventure Works","Projektový manažér\nfilip@adventure-works.com\n(234) 555-0134\nAdventure-Works.com\nlinkedin.com/in/filip-kapusta","Veľtrh 2010","Spýtať sa na dcéru Zuzanu a ako pokračuje rekonštrukcia. Nemá rád veľké skupiny ľudí a štipľavé jedlá.",{"$f":"TODAY()+8","v":"2021-07-20"},"NIE"]
["Meno","Názov spoločnosti","Pracovná pozícia\nE-mailová adresa\nTelefónne číslo\nWebová lokalita\nPrepojenia na sociálne siete\n","Miesto","Zapíšte si akékoľvek poznámky, ktoré si chcete o tejto osobe zapamätať, napríklad kde ste sa stretli, o čom ste hovorili, o čom chcete hovoriť nabudúce atď.",{"$f":"TODAY()-3","v":"2021-07-09"},"ÁNO"]
["Meno","Názov spoločnosti","Pracovná pozícia\nE-mailová adresa\nTelefónne číslo\nWebová lokalita\nPrepojenia na sociálne siete\n","Miesto","Zapíšte si akékoľvek poznámky, ktoré si chcete o tejto osobe zapamätať, napríklad kde ste sa stretli, o čom ste hovorili, o čom chcete hovoriť nabudúce atď.",{"$f":"TODAY()+-3","v":"2021-07-09"},"NIE"]
["Meno","Názov spoločnosti","Pracovná pozícia\nE-mailová adresa\nTelefónne číslo\nWebová lokalita\nPrepojenia na sociálne siete\n","Miesto","Zapíšte si akékoľvek poznámky, ktoré si chcete o tejto osobe zapamätať, napríklad kde ste sa stretli, o čom ste hovorili, o čom chcete hovoriť nabudúce atď.",{"$f":"TODAY()+6","v":"2021-07-18"},"NIE"]

{"sheet":"Príležitostní známi","index":2,"n_rows":7,"n_cols":8,"rows_kept":7,"merged":[[0,0,0,2]]}
["Sledovanie komunikácie s kontaktmi",null,null,"Príležitostní známi"]
[]
["Meno","Spoločnosť","Kontaktné informácie","Kde sme sa stretli","Poznámky","Dátum komunikácie","Hotovo","Poznámky z konverzácie"]
["Filip Kapusta","Adventure Works","Správca zdrojov\nfilip@adventure-works.com\n(434) 555-0123\nwww.adventure-works.com\nlinkedin.com/in/filip-kapusta","Dovolenka v Tatrách 2016","Užitočné pri prijímaní do zamestnania, ako aj na marketingové otázky",{"$f":"TODAY()+90","v":"2021-10-10"},"NIE"]
["Meno","Názov spoločnosti","Pracovná pozícia\nE-mailová adresa\nTelefónne číslo\nWebová lokalita\nPrepojenia na sociálne siete\n","Miesto","Zapíšte si akékoľvek poznámky, ktoré si chcete o tejto osobe zapamätať, napríklad kde ste sa stretli, o čom ste hovorili, o čom chcete hovoriť nabudúce atď.",{"$f":"TODAY()-3","v":"2021-07-09"},"ÁNO"]
["Meno","Názov spoločnosti","Pracovná pozícia\nE-mailová adresa\nTelefónne číslo\nWebová lokalita\nPrepojenia na sociálne siete\n","Miesto","Zapíšte si akékoľvek poznámky, ktoré si chcete o tejto osobe zapamätať, napríklad kde ste sa stretli, o čom ste hovorili, o čom chcete hovoriť nabudúce atď.",{"$f":"TODAY()+-3","v":"2021-07-09"},"NIE"]
["Meno","Názov spoločnosti","Pracovná pozícia\nE-mailová adresa\nTelefónne číslo\nWebová lokalita\nPrepojenia na sociálne siete\n","Miesto","Zapíšte si akékoľvek poznámky, ktoré si chcete o tejto osobe zapamätať, napríklad kde ste sa stretli, o čom ste hovorili, o čom chcete hovoriť nabudúce atď.",{"$f":"TODAY()+40","v":"2021-08-21"},"NIE"]

{"sheet":"Potenciálny záujem","index":3,"n_rows":7,"n_cols":8,"rows_kept":7,"merged":[[0,0,0,2]]}
["Sledovanie komunikácie s kontaktmi",null,null,"Potenciálny záujem"]
[]
["Meno","Spoločnosť","Kontaktné informácie","Kde sme sa stretli","Poznámky","Dátum komunikácie","Hotovo","Poznámky z konverzácie"]
["Filip Kapusta","Živnostník","Návrhár\nmeno@example.com\n425-555-0123\nexample.com\nlinkedin.com/in/filip-kapusta","Syn na promócii 2016","Nový absolvent – veľmi šikovný. Môže byť užitočný pre budúcich klientov.",{"$f":"TODAY()+89","v":"2021-10-09"},"NIE"]
["Meno","Názov spoločnosti","Pracovná pozícia\nE-mailová adresa\nTelefónne číslo\nWebová lokalita\nPrepojenia na sociálne siete\n","Miesto","Zapíšte si akékoľvek poznámky, ktoré si chcete o tejto osobe zapamätať, napríklad kde ste sa stretli, o čom ste hovorili, o čom chcete hovoriť nabudúce atď.",{"$f":"TODAY()-3","v":"2021-07-09"},"ÁNO"]
["Meno","Názov spoločnosti","Pracovná pozícia\nE-mailová adresa\nTelefónne číslo\nWebová lokalita\nPrepojenia na sociálne siete\n","Miesto","Zapíšte si akékoľvek poznámky, ktoré si chcete o tejto osobe zapamätať, napríklad kde ste sa stretli, o čom ste hovorili, o čom chcete hovoriť nabudúce atď.",{"$f":"TODAY()+-3","v":"2021-07-09"},"NIE"]
["Meno","Názov spoločnosti","Pracovná pozícia\nE-mailová adresa\nTelefónne číslo\nWebová lokalita\nPrepojenia na sociálne siete\n","Miesto","Zapíšte si akékoľvek poznámky, ktoré si chcete o tejto osobe zapamätať, napríklad kde ste sa stretli, o čom ste hovorili, o čom chcete hovoriť nabudúce atď.",{"$f":"TODAY()+30","v":"2021-08-11"},"NIE"]

{"sheet":"Networking – Plán na Q1","index":4,"n_rows":20,"n_cols":6,"rows_kept":20,"merged":[[0,0,0,3],[2,0,2,3],[4,0,4,3],[14,5,17,5],[18,0,18,3]]}
["Plán rozšírenia siete"]
["Pokyny"]
["Zapíšte si, ako plánujete v tomto štvrťroku rozšíriť svoju sieť (t. j. viac telefonických hovorov, viac cestovania atď.). Vždy, keď získate nový kontakt, zmeňte číslo uskutočnenej komunikácie s kontaktmi, aby ste mali prehľad a videli, ako sa približujete k svojmu cieľu."]
[]
["Ako plánujem rozšíriť svoju sieť v tomto štvrťroku"]
["1. Viac telefonických hovorov"]
["2. Viac cestovania"]
[]
[]
[]
[]
[]
[]
["Štvrťročný cieľ uskutočnenej komunikácie","Termín dokončenia","Uskutočnená komunikácia za štvrťrok","Výsledky"]
[20,{"$f":"TODAY()","v":"2021-07-12"},12,{"$f":"IF(tblGoals[[#This Row],[Štvrťročný cieľ uskutočnenej komunikácie]]>0,tblGoals[[#This Row],[Uskutočnená komunikácia za štvrťrok]]/tblGoals[[#This Row],[Štvrťročný cieľ uskutočnenej komunikácie]],\"\")","v":{"v":0.6,"d":"60%"}},null,"0 % – 25 %\n26 % – 50 %\n51 % – 75 %\n76 % – 100 %\n\nFarba sa mení podľa percenta uskutočnenej komunikácie"]
[{"$nulls":3},{"$f":"IF(tblGoals[[#This Row],[Štvrťročný cieľ uskutočnenej komunikácie]]>0,tblGoals[[#This Row],[Uskutočnená komunikácia za štvrťrok]]/tblGoals[[#This Row],[Štvrťročný cieľ uskutočnenej komunikácie]],\"\")","v":""}]
[{"$nulls":3},{"$f":"IF(tblGoals[[#This Row],[Štvrťročný cieľ uskutočnenej komunikácie]]>0,tblGoals[[#This Row],[Uskutočnená komunikácia za štvrťrok]]/tblGoals[[#This Row],[Štvrťročný cieľ uskutočnenej komunikácie]],\"\")","v":""}]
[]
["Zamyslenie o výsledkoch/poznámky na zlepšenie"]
["Približujem sa. Skúsiť volať okolo obedu."]

{"sheet":"Networking – Plán na Q2","index":5,"n_rows":20,"n_cols":6,"rows_kept":20,"merged":[[0,0,0,3],[2,0,2,3],[4,0,4,3],[14,5,17,5],[18,0,18,3]]}
["Plán rozšírenia siete"]
["Pokyny"]
["Zapíšte si, ako plánujete v tomto štvrťroku rozšíriť svoju sieť (t. j. viac telefonických hovorov, viac cestovania atď.). Vždy, keď získate nový kontakt, zmeňte číslo uskutočnenej komunikácie s kontaktmi, aby ste mali prehľad a videli, ako sa približujete k svojmu cieľu."]
[]
["Ako plánujem rozšíriť svoju sieť v tomto štvrťroku"]
["1. Viac telefonických hovorov"]
["2. Viac cestovania"]
[]
[]
[]
[]
[]
[]
["Štvrťročný cieľ uskutočnenej komunikácie","Termín dokončenia","Uskutočnená komunikácia za štvrťrok","Výsledky"]
[20,{"$f":"TODAY()","v":"2021-07-12"},12,{"$f":"IF(tblGoals3[[#This Row],[Štvrťročný cieľ uskutočnenej komunikácie]]>0,tblGoals3[[#This Row],[Uskutočnená komunikácia za štvrťrok]]/tblGoals3[[#This Row],[Štvrťročný cieľ uskutočnenej komunikácie]],\"\")","v":{"v":0.6,"d":"60%"}},null,"0 % – 25 %\n26 % – 50 %\n51 % – 75 %\n76 % – 100 %\n\nFarba sa mení podľa percenta uskutočnenej komunikácie"]
[{"$nulls":3},{"$f":"IF(tblGoals3[[#This Row],[Štvrťročný cieľ uskutočnenej komunikácie]]>0,tblGoals3[[#This Row],[Uskutočnená komunikácia za štvrťrok]]/tblGoals3[[#This Row],[Štvrťročný cieľ uskutočnenej komunikácie]],\"\")","v":""}]
[{"$nulls":3},{"$f":"IF(tblGoals3[[#This Row],[Štvrťročný cieľ uskutočnenej komunikácie]]>0,tblGoals3[[#This Row],[Uskutočnená komunikácia za štvrťrok]]/tblGoals3[[#This Row],[Štvrťročný cieľ uskutočnenej komunikácie]],\"\")","v":""}]
[]
["Zamyslenie o výsledkoch/poznámky na zlepšenie"]
["Približujem sa. Skúsiť volať okolo obedu."]

{"sheet":"Networking – Plán na Q3","index":6,"n_rows":20,"n_cols":6,"rows_kept":20,"merged":[[0,0,0,3],[2,0,2,3],[4,0,4,3],[14,5,17,5],[18,0,18,3]]}
["Plán rozšírenia siete"]
["Pokyny"]
["Zapíšte si, ako plánujete v tomto štvrťroku rozšíriť svoju sieť (t. j. viac telefonických hovorov, viac cestovania atď.). Vždy, keď získate nový kontakt, zmeňte číslo uskutočnenej komunikácie s kontaktmi, aby ste mali prehľad a videli, ako sa približujete k svojmu cieľu."]
[]
["Ako plánujem rozšíriť svoju sieť v tomto štvrťroku"]
["1. Viac telefonických hovorov"]
["2. Viac cestovania"]
[]
[]
[]
[]
[]
[]
["Štvrťročný cieľ uskutočnenej komunikácie","Termín dokončenia","Uskutočnená komunikácia za štvrťrok","Výsledky"]
[20,{"$f":"TODAY()","v":"2021-07-12"},12,{"$f":"IF(tblGoals34[[#This Row],[Štvrťročný cieľ uskutočnenej komunikácie]]>0,tblGoals34[[#This Row],[Uskutočnená komunikácia za štvrťrok]]/tblGoals34[[#This Row],[Štvrťročný cieľ uskutočnenej komunikácie]],\"\")","v":{"v":0.6,"d":"60%"}},null,"0 % – 25 %\n26 % – 50 %\n51 % – 75 %\n76 % – 100 %\n\nFarba sa mení podľa percenta uskutočnenej komunikácie"]
[{"$nulls":3},{"$f":"IF(tblGoals34[[#This Row],[Štvrťročný cieľ uskutočnenej komunikácie]]>0,tblGoals34[[#This Row],[Uskutočnená komunikácia za štvrťrok]]/tblGoals34[[#This Row],[Štvrťročný cieľ uskutočnenej komunikácie]],\"\")","v":""}]
[{"$nulls":3},{"$f":"IF(tblGoals34[[#This Row],[Štvrťročný cieľ uskutočnenej komunikácie]]>0,tblGoals34[[#This Row],[Uskutočnená komunikácia za štvrťrok]]/tblGoals34[[#This Row],[Štvrťročný cieľ uskutočnenej komunikácie]],\"\")","v":""}]
[]
["Zamyslenie o výsledkoch/poznámky na zlepšenie"]
["Približujem sa. Skúsiť volať okolo obedu."]

{"sheet":"Networking – Plán na Q4","index":7,"n_rows":20,"n_cols":6,"rows_kept":20,"merged":[[0,0,0,3],[2,0,2,3],[4,0,4,3],[14,5,17,5],[18,0,18,3]]}
["Plán rozšírenia siete"]
["Pokyny"]
["Zapíšte si, ako plánujete v tomto štvrťroku rozšíriť svoju sieť (t. j. viac telefonických hovorov, viac cestovania atď.). Vždy, keď získate nový kontakt, zmeňte číslo uskutočnenej komunikácie s kontaktmi, aby ste mali prehľad a videli, ako sa približujete k svojmu cieľu."]
[]
["Ako plánujem rozšíriť svoju sieť v tomto štvrťroku"]
["1. Viac telefonických hovorov"]
["2. Viac cestovania"]
[]
[]
[]
[]
[]
[]
["Štvrťročný cieľ uskutočnenej komunikácie","Termín dokončenia","Uskutočnená komunikácia za štvrťrok","Výsledky"]
[20,{"$f":"TODAY()","v":"2021-07-12"},12,{"$f":"IF(tblGoals348[[#This Row],[Štvrťročný cieľ uskutočnenej komunikácie]]>0,tblGoals348[[#This Row],[Uskutočnená komunikácia za štvrťrok]]/tblGoals348[[#This Row],[Štvrťročný cieľ uskutočnenej komunikácie]],\"\")","v":{"v":0.6,"d":"60%"}},null,"0 % – 25 %\n26 % – 50 %\n51 % – 75 %\n76 % – 100 %\n\nFarba sa mení podľa percenta uskutočnenej komunikácie"]
[{"$nulls":3},{"$f":"IF(tblGoals348[[#This Row],[Štvrťročný cieľ uskutočnenej komunikácie]]>0,tblGoals348[[#This Row],[Uskutočnená komunikácia za štvrťrok]]/tblGoals348[[#This Row],[Štvrťročný cieľ uskutočnenej komunikácie]],\"\")","v":""}]
[{"$nulls":3},{"$f":"IF(tblGoals348[[#This Row],[Štvrťročný cieľ uskutočnenej komunikácie]]>0,tblGoals348[[#This Row],[Uskutočnená komunikácia za štvrťrok]]/tblGoals348[[#This Row],[Štvrťročný cieľ uskutočnenej komunikácie]],\"\")","v":""}]
[]
["Zamyslenie o výsledkoch/poznámky na zlepšenie"]
["Približujem sa. Skúsiť volať okolo obedu."]